bitfinex-derivatives/quotes_ETHF0:USTF0_20240922
["timestamp","ask_amount","ask_price","bid_price","bid_amount"]
[1727040451446,2.42517167,2576.8,2576.7,2.32795499]
[1727040452944,3.39531167,2576.8,2576.7,2.32795499]
[1727040453145,1.7528,2576.8,2576.7,1.01868022]
[1727040454151,2.7328,2576.8,2576.7,1.01868022]
[1727040454346,5.27185825,2576.8,2576.7,1.01868022]
[1727040454843,2.7328,2576.8,2576.7,1.01868022]
[1727040457657,0.38807,2576.7,2576.6,1.01868022]
[1727040457854,2.81845391,2576.7,2576.6,2.3278885]
[1727040458156,0.78117,2576.7,2576.6,2.32784579]
[1727040458357,0.78117,2576.7,2576.6,1.01868022]
[1727040459955,2.81850253,2576.7,2576.6,2.32789899]
[1727040461156,2.81850253,2576.7,2576.6,1.01868022]
[1727040461559,2.81850253,2576.7,2576.6,2.32807016]
[1727040461759,0.78117,2576.7,2576.6,2.32807016]
[1727040462155,0.78117,2576.7,2576.6,1.01868022]
[1727040463059,0.78117,2576.7,2576.6,2.3280896]
[1727040463556,0.78117,2576.7,2576.6,1.01868022]
[1727040464763,2.81825119,2576.7,2576.6,2.83750151]
[1727040467964,2.81825119,2576.7,2576.6,2.83751881]
[1727040469661,2.81825119,2576.7,2576.6,1.3094756]
[1727040470061,2.81825119,2576.7,2576.6,2.83751881]
[1727040470567,2.81825119,2576.7,2576.6,1.3094756]
[1727040470770,2.81825119,2576.7,2576.6,2.83751881]
[1727040471163,2.81825119,2576.7,2576.6,1.3094756]
[1727040471559,2.81825119,2576.7,2576.6,2.32817166]
[1727040472670,2.81825119,2576.7,2576.6,1.01869606]
[1727040475078,2.81825119,2576.7,2576.6,2.32804117]
[1727040475274,2.81825119,2576.7,2576.6,2.32802657]
[1727040475473,2.81825119,2576.7,2576.6,1.01869606]
[1727040475773,2.81825119,2576.7,2576.6,2.32801668]
[1727040475970,2.81825119,2576.7,2576.6,2.32795678]
[1727040476163,2.81825119,2576.7,2576.6,2.3279421]
[1727040476366,2.81825119,2576.7,2576.6,2.32794331]
[1727040476568,2.81825119,2576.7,2576.6,2.83737299]
[1727040477571,2.42515119,2576.7,2576.6,1.30932978]
[1727040477781,2.42515119,2576.7,2576.6,2.83731446]
[1727040478167,2.42515119,2576.7,2576.6,2.32787225]
[1727040479270,2.42515119,2576.7,2576.6,2.32789779]
[1727040479672,2.42515119,2576.7,2576.6,2.83731446]
[1727040480268,2.42515119,2576.7,2576.6,1.30927125]
[1727040480474,2.42515119,2576.7,2576.6,2.3279148]
[1727040481170,2.42515119,2576.7,2576.6,2.32797161]
[1727040482274,2.42515119,2576.7,2576.6,2.32796278]
[1727040482777,2.42515119,2576.7,2576.6,2.32792668]
[1727040483469,3.39533119,2576.7,2576.6,2.32792668]
[1727040483664,3.39533119,2576.7,2576.6,2.32792492]
[1727040483872,3.39533119,2576.7,2576.6,1.01859862]
[1727040484277,3.39533119,2576.7,2576.6,2.83736926]
[1727040484577,3.39533119,2576.7,2576.6,2.3279361]
[1727040484974,3.39533119,2576.7,2576.6,2.32795079]
[1727040485370,3.39533119,2576.7,2576.6,2.32793786]
[1727040485570,3.39533119,2576.7,2576.6,1.01862474]
[1727040485780,3.39533119,2576.7,2576.6,2.32791155]
[1727040485986,3.39533119,2576.7,2576.6,1.01858843]
[1727040486681,3.39533119,2576.7,2576.6,2.32788853]
[1727040487067,3.39533119,2576.7,2576.6,1.01858843]
[1727040487282,3.39533119,2576.7,2576.6,2.32789543]
[1727040487678,3.39533119,2576.7,2576.6,1.01858843]
[1727040488279,3.39533119,2576.7,2576.6,2.3279077]
[1727040488479,3.39533119,2576.7,2576.6,1.01858843]
[1727040488878,3.39533119,2576.7,2576.6,2.32794432]
[1727040489178,3.39533119,2576.7,2576.6,1.01858843]
[1727040489580,3.39533119,2576.7,2576.6,2.32797009]
[1727040489780,3.39533119,2576.7,2576.6,1.01858843]
[1727040489987,3.39533119,2576.7,2576.6,2.32795459]
[1727040490189,3.39533119,2576.7,2576.6,1.01858843]
[1727040490681,1.73085,2576.7,2576.6,1.01858843]
[1727040490983,3.76774694,2576.7,2576.6,2.32799409]
[1727040491282,3.76774694,2576.7,2576.6,2.32804557]
[1727040491579,3.76774694,2576.7,2576.6,2.32802609]
[1727040491580,3.76778377,2576.7,2576.6,2.32802609]
[1727040494173,3.76789838,2576.7,2576.6,2.32802609]
[1727040494476,1.73085,2576.7,2576.6,1.01858843]
[1727040494675,1.73085,2576.7,2576.6,2.32813198]
[1727040494877,1.73085,2576.7,2576.6,1.01858843]
[1727040495681,4.26990825,2576.7,2576.6,1.01858843]
[1727040496990,7.47770825,2576.7,2576.6,1.01858843]
[1727040498485,1.3583,2576.6,2576.5,1.39478843]
[1727040498686,5.27300163,2576.6,2576.5,1.39478843]
[1727040499986,2.7266,2576.6,2576.5,1.39478843]
[1727040501091,5.9344,2576.6,2576.5,1.39478843]
[1727040501794,5.9344,2576.6,2576.5,1.01858843]
[1727040503384,1.35836,2576.5,2576.4,0.4031]
[1727040503584,1.35836,2576.5,2576.4,3.24048027]
[1727040503785,3.39417574,2576.5,2576.4,3.24048027]
[1727040504193,1.35836,2576.5,2576.4,3.24048027]
[1727040504387,3.39417574,2576.5,2576.4,3.24048027]
[1727040505189,3.39417574,2576.5,2576.4,1.71243706]
[1727040505694,6.60197574,2576.5,2576.4,1.71243706]
[1727040505884,6.60197574,2576.5,2576.4,1.30933706]
[1727040506286,6.60197574,2576.5,2576.4,2.32789912]
[1727040506692,6.60197574,2576.5,2576.4,1.01856206]
[1727040507295,6.60197574,2576.5,2576.4,2.32774651]
[1727040507599,6.60197574,2576.5,2576.4,1.01856206]
[1727040508995,1.3584,2576.4,2576.3,1.01856206]
[1727040509193,2.7221,2576.4,2576.3,2.32769025]
[1727040509794,4.75791574,2576.4,2576.3,1.01856206]
[1727040510301,2.7221,2576.4,2576.3,1.01856206]
[1727040511092,2.7221,2576.4,2576.3,2.32748741]
[1727040511398,2.7221,2576.4,2576.3,1.01856206]
[1727040511595,6.6037,2576.4,2576.3,1.01856206]
[1727040511803,0.38813,2576.3,2576.2,1.01856206]
[1727040512002,6.7645,2576.3,2575.6,0.09]
[1727040512199,1.35882,2575.6,2575.5,0.82156206]
[1727040512509,1.35882,2575.6,2575.4,0.377]
[1727040512510,0.38825,2575.5,2575.4,0.377]
[1727040512700,1.36825,2575.5,2575.4,0.377]
[1727040518197,0.38824,2575.6,2575.4,0.377]
[1727040518396,0.98,2575.5,2575.4,0.377]
[1727040519502,1.36825,2575.5,2575.4,0.377]
[1727040519694,0.38825,2575.5,2575.4,0.377]
[1727040519895,1.36825,2575.5,2575.4,0.377]
[1727040532719,0.38829,2575.3,2575.0,0.3989]
[1727040533008,0.98,2575.2,2575.0,0.7968]
[1727040534203,0.3883,2575.2,2575.0,0.7968]
[1727040534410,0.98,2575.1,2575.0,0.7968]
[1727040536617,1.3683,2575.2,2575.0,0.7968]
[1727040538514,0.38831,2575.1,2575.0,0.7968]
[1727040538721,1.36831,2575.2,2575.0,0.7968]
[1727040541829,0.3729,2575.1,2575.0,0.7968]
[1727040543722,0.77989,2575.3,2575.0,1.18513]
[1727040544018,5.34059,2575.3,2575.0,1.18512]
[1727040544615,0.3883,2575.2,2575.0,1.18512]
[1727040548921,3.9723,2575.3,2575.0,0.7968]
[1727040549227,3.5994,2575.3,2575.2,0.38829]
[1727040550429,0.98,2575.4,2575.3,0.38828]
[1727040557030,0.98,2575.4,2575.3,0.76988]
[1727040557430,0.98,2575.4,2575.3,3.60292941]
[1727040560934,0.98,2575.4,2575.3,3.60301068]
[1727040562234,1.36826,2575.4,2575.3,3.60301068]
[1727040565943,1.36826,2575.4,2575.3,3.21491457]
[1727040568042,1.36826,2575.4,2575.3,3.60319457]
[1727040568446,0.98,2575.4,2575.3,3.60319457]
[1727040569143,1.36826,2575.4,2575.3,3.60319457]
[1727040569848,1.36826,2575.4,2575.3,3.21491457]
[1727040570739,0.98,2575.4,2575.3,3.60337751]
[1727040571446,0.98,2575.4,2575.3,3.99787751]
[1727040572132,0.98,2575.4,2575.3,3.60959751]
[1727040572339,0.98,2575.4,2575.3,3.99787751]
[1727040575547,0.98,2575.4,2575.3,3.99797079]
[1727040577045,0.98,2575.4,2575.3,3.60969079]
[1727040577740,0.98,2575.4,2575.3,3.99797079]
[1727040581948,0.98,2575.4,2575.3,4.00206521]
[1727040582146,0.98,2575.4,2575.3,2.47330897]
[1727040582953,0.98,2575.4,2575.3,4.00207677]
[1727040583158,0.98,2575.4,2575.3,2.47330897]
[1727040583359,2.03014611,2575.5,2575.4,0.38826]
[1727040583662,6.51718264,2575.6,2575.5,0.38825]
[1727040583663,5.23794611,2575.6,2575.5,0.38825]
[1727040583852,3.2078,2575.6,2575.5,3.22585844]
[1727040584158,3.01014611,2575.7,2575.6,0.38823]
[1727040584356,3.01014611,2575.7,2575.6,3.61809428]
[1727040584660,3.01014611,2575.7,2575.6,3.22986428]
[1727040585051,3.01014611,2575.7,2575.6,2.31283531]
[1727040585253,3.01014611,2575.7,2575.6,3.62162408]
[1727040585955,0.98,2575.7,2575.6,3.62162408]
[1727040586660,0.98,2575.7,2575.6,2.09298877]
[1727040587455,0.98,2575.7,2575.6,2.48121877]
[1727040587856,0.98,2575.7,2575.6,2.85281877]
[1727040588052,0.98,2575.7,2575.6,4.38145408]
[1727040588260,0.98,2575.7,2575.6,2.85281877]
[1727040589262,0.98,2575.7,2575.6,2.85238272]
[1727040589557,0.98,2575.7,2575.6,2.46415272]
[1727040590061,0.98,2575.7,2575.6,2.46409363]
[1727040590361,0.98,2575.7,2575.6,2.85232363]
[1727040591555,0.98,2575.7,2575.6,2.85221179]
[1727040592662,0.98,2575.7,2575.6,1.54403]
[1727040592960,2.42474611,2575.8,2575.7,0.38822]
[1727040593152,2.53768264,2576.0,2575.8,0.3882]
[1727040593153,3.39454611,2576.0,2575.8,0.3882]
[1727040593353,3.39454611,2576.0,2575.9,1.15099]
[1727040593354,1.3644,2576.0,2575.9,1.15099]
[1727040594063,1.75257,2576.0,2575.9,0.7628]
[1727040596356,1.3644,2576.0,2575.9,0.7628]
[1727040597662,1.75257,2576.0,2575.9,0.7628]
[1727040598765,1.3644,2576.0,2575.9,0.7628]
[1727040600469,1.3644,2576.0,2575.9,1.15099]
[1727040601164,1.3644,2576.0,2575.9,0.7628]
[1727040601362,1.75257,2576.0,2575.9,0.7628]
[1727040601754,1.75257,2576.0,2575.9,1.15099]
[1727040601755,0.3844,2576.0,2575.9,1.15099]
[1727040601958,0.38812,2576.4,2576.1,0.38815]
[1727040602165,0.38812,2576.4,2575.9,12.93139397]
[1727040602166,1.16462,2576.4,2576.2,0.3789]
[1727040602362,1.16462,2576.4,2576.3,0.3978]
[1727040602577,0.7765,2576.4,2576.3,0.3978]
[1727040603572,0.38814,2576.3,2576.0,0.38817]
[1727040603772,1.36814,2576.3,2576.0,1.16487]
[1727040603970,1.36813,2576.3,2576.0,1.16487]
[1727040604359,4.57593,2576.3,2576.0,0.7767]
[1727040604567,4.57593,2576.3,2576.0,1.16487]
[1727040605264,4.1878,2576.3,2576.0,0.7767]
[1727040605565,4.57594,2576.3,2576.0,1.16487]
[1727040607468,0.38814,2576.2,2576.0,0.7767]
[1727040607674,0.3934,2576.1,2576.0,1.16487]
[1727040607870,0.7891,2576.1,2576.0,1.16487]
[1727040608474,0.7891,2576.1,2576.0,0.7767]
[1727040609266,0.7891,2576.1,2576.0,1.16487]
[1727040610976,0.3934,2576.1,2576.0,1.16487]
[1727040613270,0.3947,2576.2,2576.1,0.38816]
[1727040613470,0.3947,2576.2,2576.0,0.7767]
[1727040613471,3.2078,2576.3,2576.2,0.38814]
[1727040614375,0.3874,2576.3,2576.2,0.38814]
[1727040616680,1.3666,2576.4,2576.2,0.38814]
[1727040616983,1.3666,2576.4,2576.3,0.3898]
[1727040617181,1.3666,2576.4,2576.3,0.7716]
[1727040617381,0.3866,2576.4,2576.3,0.7716]
[1727040618483,0.77471,2576.4,2576.3,0.7716]
[1727040622188,0.3866,2576.4,2576.3,0.7716]
[1727040622376,0.77471,2576.4,2576.3,0.7716]
[1727040624088,1.3674,2576.5,2576.4,0.38811]
[1727040624089,0.3874,2576.5,2576.4,0.38811]
[1727040624577,1.77008,2576.7,2576.5,0.3881]
[1727040624886,1.77007,2576.7,2576.6,0.4049]
[1727040625092,1.77007,2576.7,2576.6,0.7814]
[1727040629575,1.382,2576.7,2576.6,0.7814]
[1727040631583,1.77007,2576.7,2576.6,0.7814]
[1727040636290,1.382,2576.7,2576.6,0.7814]
[1727040638884,0.402,2576.7,2576.6,0.7814]
[1727040640595,0.402,2576.7,2576.6,1.16948]
[1727040641191,0.402,2576.7,2576.6,0.7814]
[1727040643197,0.402,2576.7,2576.6,1.16948]
[1727040645789,0.402,2576.7,2576.6,2.18471752]
[1727040646184,0.402,2576.7,2576.6,1.16948]
[1727040646391,0.402,2576.7,2576.6,2.18471752]
[1727040647990,0.78265,2576.8,2576.6,2.18471752]
[1727040649492,0.78265,2576.8,2576.6,1.79663752]
[1727040652789,0.78265,2576.8,2576.6,1.16948]
[1727040654392,0.3946,2576.8,2576.6,1.16948]
[1727040655199,0.78266,2576.8,2576.6,1.16948]
[1727040656195,2.42872408,2576.9,2576.6,0.7814]
[1727040656401,2.42872408,2576.9,2576.7,0.3686]
[1727040657504,2.42872408,2576.9,2576.8,0.38805]
[1727040659500,2.42872408,2576.9,2576.7,0.75666]
[1727040659698,2.42872408,2576.9,2576.7,1.77189752]
[1727040659890,0.3929,2576.9,2576.7,1.77189752]
[1727040660704,0.3929,2576.9,2576.8,1.40328752]
[1727040661202,0.3929,2576.9,2576.8,2.71006804]
[1727040661908,0.3929,2576.9,2576.8,1.69483052]
[1727040662104,2.03582408,2577.2,2576.9,0.38804]
[1727040662299,0.38801,2577.1,2577.0,1.01708974]
[1727040662613,0.388,2577.2,2577.0,1.01708974]
[1727040662918,0.38801,2577.1,2577.0,1.01708974]
[1727040664107,0.38801,2577.1,2576.9,1.01708974]
[1727040664298,0.38801,2577.1,2576.8,1.52863531]
[1727040664299,0.38804,2576.9,2576.8,1.01708974]
[1727040664508,1.95007,2577.0,2576.7,4.22488974]
[1727040664509,0.38805,2576.8,2576.7,4.22488974]
[1727040665093,1.36805,2576.8,2576.7,4.22488974]
[1727040666107,1.36805,2576.8,2576.7,5.53155466]
[1727040666407,1.36805,2576.8,2576.7,4.22488974]
[1727040667102,1.36805,2576.8,2576.7,5.53172125]
[1727040667411,1.36805,2576.8,2576.7,4.22488974]
[1727040668607,1.36805,2576.8,2576.7,1.01708974]
[1727040669197,1.36805,2576.8,2576.7,2.32440669]
[1727040669409,2.42387408,2576.9,2576.7,2.32440669]
[1727040669610,2.42387408,2576.9,2576.8,1.01708974]
[1727040669611,0.38805,2576.9,2576.8,1.01708974]
[1727040669808,0.38805,2576.9,2576.8,1.38938974]
[1727040672615,2.42387408,2576.9,2576.8,1.38938974]
[1727040673004,0.38805,2576.9,2576.8,1.38938974]
[1727040673405,2.42387408,2576.9,2576.8,1.38938974]
[1727040674909,0.38805,2576.9,2576.8,0.3723]
[1727040675109,2.03591798,2576.9,2576.8,0.76035]
[1727040675314,2.78691798,2577.0,2576.8,1.77743974]
[1727040675503,2.41351798,2577.0,2576.9,0.38804]
[1727040675708,2.41351798,2577.0,2576.9,1.40512974]
[1727040675904,0.3776,2577.0,2576.9,1.40512974]
[1727040676112,0.76562,2577.0,2576.9,1.01708974]
[1727040676409,2.41351798,2577.0,2576.8,1.77742974]
[1727040678415,2.80153798,2577.0,2576.8,1.77742974]
[1727040679210,2.41351798,2577.0,2576.9,0.38804]
[1727040680209,2.41351798,2577.0,2576.8,1.77742974]
[1727040682906,2.41351798,2577.0,2576.9,1.01708974]
[1727040682907,0.3776,2577.0,2576.9,1.01708974]
[1727040683722,0.3776,2577.0,2576.9,2.32424374]
[1727040688024,0.3776,2577.0,2576.9,2.32424542]
[1727040689823,2.41351798,2577.0,2576.8,1.77742974]
[1727040690528,2.41351798,2577.0,2576.9,0.3817]
[1727040692532,2.80153798,2577.0,2576.9,0.3817]
[1727040696237,0.38804,2576.9,2576.8,1.38938974]
[1727040696438,2.81701094,2576.9,2576.8,1.38938974]
[1727040696634,0.78124,2576.9,2576.8,1.38938974]
[1727040696936,2.81701094,2576.9,2576.8,1.01708974]
[1727040697132,0.38807,2576.7,2576.6,1.81488974]
[1727040697446,0.38808,2576.6,2576.5,1.01708974]
[1727040697745,3.19506078,2576.6,2576.5,1.01708974]
[1727040697932,1.15908,2576.6,2576.5,2.83486977]
[1727040704847,1.15908,2576.6,2576.5,1.30775386]
[1727040705041,1.15908,2576.6,2576.5,2.83486977]
[1727040705945,1.15908,2576.6,2576.5,1.30775386]
[1727040706549,1.15908,2576.6,2576.5,2.32534069]
[1727040706848,1.15908,2576.6,2576.5,1.30775386]
[1727040707051,1.15908,2576.6,2576.5,1.30715133]
[1727040707250,1.15908,2576.6,2576.5,2.32470849]
[1727040708146,2.13908,2576.6,2576.5,2.32470849]
[1727040708353,0.3881,2576.5,2576.4,1.01755716]
[1727040708648,0.3881,2576.5,2576.3,1.52711591]
[1727040708649,0.38811,2576.4,2576.3,1.01755716]
[1727040709541,1.3584,2576.4,2576.3,1.01755716]
[1727040709746,0.38813,2576.3,2576.1,2.27391591]
[1727040709951,0.76393,2576.3,2576.2,2.32448506]
[1727040710146,0.76393,2576.3,2576.2,1.01748931]
[1727040712149,0.38814,2576.2,2576.1,1.76428931]
[1727040713554,0.76394,2576.3,2576.1,1.76428931]
[1727040714154,0.76394,2576.3,2576.1,0.7468]
[1727040714452,0.38814,2576.2,2576.1,0.7468]
[1727040714655,0.38814,2576.2,2576.1,1.76428931]
[1727040715056,0.38814,2576.2,2576.1,0.7468]
[1727040717260,0.76394,2576.3,2576.1,0.7468]
[1727040717444,0.38813,2576.4,2576.1,1.13496]
[1727040717760,0.38813,2576.4,2576.1,2.15244931]
[1727040718557,0.3679,2576.5,2576.1,1.76428931]
[1727040718756,0.38812,2576.4,2576.1,2.15243931]
[1727040719659,0.75601,2576.5,2576.2,0.38814]
[1727040719860,0.756,2576.5,2576.2,0.38813]
[1727040720053,0.756,2576.5,2576.3,0.3736]
[1727040720446,0.756,2576.5,2576.4,0.4034]
[1727040723263,0.77609,2576.6,2576.4,0.79151]
[1727040723453,4.924,2576.8,2576.5,0.3864]
[1727040723654,4.9558,2576.8,2576.5,0.3864]
[1727040723854,0.38808,2576.6,2576.5,0.3864]
[1727040730669,3.40405078,2576.7,2576.5,0.3864]
[1727040731068,0.38808,2576.6,2576.5,0.3864]
[1727040735471,1.36808,2576.7,2576.5,0.3864]
[1727040735670,0.38808,2576.6,2576.5,0.3864]
[1727040739582,7.37984078,2576.8,2576.5,0.3864]
[1727040739878,0.768,2576.8,2576.5,1.40388931]
[1727040740067,1.15606,2576.8,2576.5,1.79198931]
[1727040740270,1.15606,2576.8,2576.6,1.01748931]
[1727040740670,1.15606,2576.8,2576.7,0.3746]
[1727040742274,3.19204078,2576.8,2576.7,0.3746]
[1727040743581,2.03598078,2576.8,2576.7,0.3746]
[1727040744172,2.42403078,2576.8,2576.7,0.3746]
[1727040744482,0.38805,2576.8,2576.7,0.3746]
[1727040750478,0.38805,2576.8,2576.7,1.39208931]
[1727040752583,1.36805,2576.8,2576.7,1.01748931]
[1727040752885,0.38807,2576.7,2576.6,1.01748931]
[1727040753182,1.15857,2576.7,2576.6,2.32311724]
[1727040753377,1.15857,2576.7,2576.6,1.01748931]
[1727040754382,1.15857,2576.7,2576.5,1.40388931]
[1727040754585,3.9783,2576.7,2576.5,1.40388931]
[1727040754774,0.7705,2576.7,2576.5,1.40388931]
[1727040754975,1.15858,2576.7,2576.5,1.40388931]
[1727040755389,0.38808,2576.6,2576.5,1.40388931]
[1727040755584,0.38808,2576.6,2576.5,0.3864]
[1727040755778,0.38808,2576.6,2576.4,1.40198931]
[1727040755779,0.3881,2576.5,2576.4,1.01748931]
[1727040756281,0.38811,2576.4,2576.3,1.01674462]
[1727040756489,0.77431,2576.4,2576.3,2.32248853]
[1727040756886,0.77431,2576.4,2576.3,1.01677092]
[1727040757277,0.38813,2576.3,2576.2,1.01677092]
[1727040757483,1.76293,2576.3,2576.2,1.01677092]
[1727040757885,0.38814,2576.2,2576.1,1.01677092]
[1727040758082,0.38814,2576.2,2576.1,1.3059785]
[1727040758388,0.38814,2576.2,2576.1,1.01699516]
[1727040760394,0.38814,2576.2,2576.0,1.01699516]
[1727040760585,0.38814,2576.2,2576.1,1.01699516]
[1727040760785,0.38814,2576.2,2576.0,1.01699516]
[1727040761783,0.38814,2576.2,2576.1,1.01699516]
[1727040761985,0.38814,2576.2,2576.0,1.01699516]
[1727040762595,0.3909,2576.1,2576.0,1.01699516]
[1727040763292,4.96686,2576.1,2576.0,1.01699516]
[1727040763595,4.96686,2576.1,2575.9,1.90021591]
[1727040763596,0.38817,2576.0,2575.9,1.01699516]
[1727040763791,4.5787,2576.1,2575.8,1.81949516]
[1727040763988,0.38819,2575.9,2575.8,1.81949516]
[1727040764193,0.38819,2575.9,2575.8,2.10883319]
[1727040764399,0.38819,2575.9,2575.8,3.1259381]
[1727040764793,0.38819,2575.9,2575.8,3.6359491]
[1727040764997,0.38819,2575.9,2575.8,3.12591541]
[1727040765393,0.38819,2575.9,2575.8,1.81958222]
[1727040766999,0.38819,2575.9,2575.8,3.12523589]
[1727040767391,0.38819,2575.9,2575.8,1.81958222]
[1727040768302,0.38819,2575.9,2575.8,0.8025]
[1727040774192,0.77449,2575.9,2575.8,0.8025]
[1727040780008,1.74497,2575.9,2575.8,0.4011]
[1727040780204,0.97052,2575.8,2575.4,1.01708222]
[1727040780411,0.97052,2575.8,2575.4,0.7686]
[1727040780412,0.38825,2575.5,2575.4,0.7686]
[1727040780908,0.77995,2575.5,2575.4,0.7686]
[1727040787898,0.3883,2575.2,2574.9,5.54042222]
[1727040788103,0.3883,2575.2,2575.1,0.3945]
[1727040791606,3.8832,2575.2,2574.7,1.01708222]
[1727040791808,0.98,2574.8,2574.6,0.3989]
[1727040792007,0.38837,2574.7,2574.6,0.3989]
[1727040795915,0.98,2574.8,2574.6,0.3989]
[1727040796108,0.38837,2574.7,2574.6,0.3989]
[1727040799019,0.98,2574.8,2574.6,0.3989]
[1727040799223,0.38837,2574.7,2574.6,0.3989]
[1727040808229,0.76407,2574.7,2574.6,0.3989]
[1727040809131,0.38839,2574.6,2574.5,0.3986]
[1727040809320,4.98289,2574.6,2574.5,0.3986]
[1727040810025,0.38842,2574.4,2574.3,0.3799]
[1727040810224,1.36842,2574.4,2574.3,0.3799]
[1727040812923,1.36842,2574.4,2574.2,0.3781]
[1727040813125,1.16573,2574.3,2574.2,0.3781]
[1727040813426,3.2078,2574.6,2574.2,0.3781]
[1727040813726,1.3684,2574.5,2574.3,0.8059]
[1727040814614,0.98,2574.5,2574.3,0.8059]
[1727040814819,1.36841,2574.5,2574.3,0.8059]
[1727040816031,0.38842,2574.4,2574.3,0.8059]
[1727040819630,1.76221,2574.5,2574.3,0.8059]
[1727040820224,1.3738,2574.5,2574.3,0.8059]
[1727040820425,1.76221,2574.5,2574.3,0.8059]
[1727040820633,0.38842,2574.4,2574.3,0.8059]
[1727040826939,0.38842,2574.4,2574.3,1.19433]
[1727040827238,0.38842,2574.4,2574.3,0.8059]
[1727040827538,0.38842,2574.4,2574.3,0.4087]
[1727040827731,0.38843,2574.3,2574.2,0.76655]
[1727040827933,1.36843,2574.3,2574.2,0.3781]
[1727040829325,1.36843,2574.3,2574.2,0.76655]
[1727040831029,1.36843,2574.3,2574.2,0.3781]
[1727040832144,0.38843,2574.3,2574.2,0.76655]
[1727040832446,1.36843,2574.3,2574.2,0.3781]
[1727040834042,1.36843,2574.3,2574.2,0.76655]
[1727040835133,1.36843,2574.3,2574.2,0.3781]
[1727040836544,1.36843,2574.3,2574.2,1.78363222]
[1727040837045,1.36843,2574.3,2574.2,1.39518222]
[1727040837243,1.36843,2574.3,2574.2,1.78363222]
[1727040837936,1.36843,2574.3,2574.2,1.39518222]
[1727040838139,1.36843,2574.3,2574.2,1.78363222]
[1727040840233,0.98,2574.3,2574.2,1.78363222]
[1727040840437,1.36843,2574.3,2574.2,2.70205296]
[1727040840639,1.36843,2574.3,2574.2,1.39518222]
[1727040840841,1.36843,2574.3,2574.2,1.78363222]
[1727040841034,1.36843,2574.3,2574.2,3.09052319]
[1727040841238,1.36843,2574.3,2574.2,1.78363222]
[1727040841952,1.36843,2574.3,2574.2,1.39518222]
[1727040842149,1.36843,2574.3,2574.2,2.70212323]
[1727040843151,1.36843,2574.3,2574.2,1.68504101]
[1727040843651,1.36843,2574.3,2574.2,2.07349101]
[1727040844060,1.36843,2574.3,2574.2,1.68504101]
[1727040844247,1.36843,2574.3,2574.2,3.21215692]
[1727040844451,2.33951,2574.3,2574.2,2.325009]
[1727040844757,2.33951,2574.3,2574.2,2.32522371]
[1727040845149,2.33951,2574.3,2574.2,1.01806799]
[1727040845351,0.38845,2574.2,2574.1,1.01806799]
[1727040845660,0.38846,2574.1,2574.0,1.01806799]
[1727040845860,1.36846,2574.1,2574.0,2.32529005]
[1727040846154,1.77166,2574.1,2574.0,2.32529005]
[1727040846355,1.77166,2574.1,2574.0,1.01806799]
[1727040848567,2.74282,2574.1,2574.0,2.32533836]
[1727040848757,2.74282,2574.1,2574.0,1.01806799]
[1727040848964,2.74282,2574.1,2573.8,1.52711591]
[1727040848965,0.38848,2574.0,2573.9,1.01806799]
[1727040849268,1.77248,2574.0,2573.9,1.01806799]
[1727040849461,2.74368,2574.0,2573.9,2.32525373]
[1727040849669,5.95148,2574.0,2573.9,1.01821849]
[1727040850156,5.95148,2574.0,2573.8,1.01821849]
[1727040850157,0.38849,2573.9,2573.8,1.01821849]
[1727040850363,0.38851,2573.8,2573.7,1.52711591]
[1727040850667,0.38851,2573.8,2573.7,3.22582983]
[1727040854674,0.38851,2573.8,2573.7,3.22582279]
[1727040858172,0.38851,2573.8,2573.7,3.61434279]
[1727040858471,0.38851,2573.8,2573.7,2.32533878]
[1727040858663,0.38851,2573.8,2573.7,1.0180319]
[1727040870164,0.38852,2573.7,2573.6,1.3887319]
[1727040870369,1.36852,2573.7,2573.6,3.08379721]
[1727040870566,1.36852,2573.7,2573.6,2.06576531]
[1727040870778,1.36852,2573.7,2573.6,3.20434122]
[1727040870982,1.36852,2573.7,2573.6,2.69488394]
[1727040871783,1.36852,2573.7,2573.6,2.32418394]
[1727040872075,2.33983,2573.7,2573.6,1.01765863]
[1727040872274,2.72883,2573.7,2573.6,1.01765863]
[1727040872469,0.38854,2573.6,2573.5,1.41615863]
[1727040872670,1.14434,2573.6,2573.5,2.72272212]
[1727040873272,2.11569,2573.6,2573.5,2.72265631]
[1727040873474,2.12434,2573.6,2573.5,1.41615863]
[1727040873685,2.12434,2573.6,2573.5,2.72269539]
[1727040873883,2.12434,2573.6,2573.5,1.41615863]
[1727040875079,3.09569,2573.6,2573.5,1.41615863]
[1727040880081,0.3814,2573.6,2573.5,3.11124693]
[1727040880281,0.98,2573.6,2573.5,1.80470863]
[1727040880485,0.98,2573.6,2573.5,3.11120507]
[1727040881182,1.36854,2573.6,2573.5,3.11120507]
[1727040881378,1.36854,2573.6,2573.5,3.62066235]
[1727040881982,1.36854,2573.6,2573.5,3.11126756]
[1727040882379,1.36854,2573.6,2573.5,3.11127091]
[1727040882680,1.36854,2573.6,2573.5,2.09354644]
[1727040883080,1.36854,2573.6,2573.5,3.62066235]
[1727040883589,1.36854,2573.6,2573.5,3.62085788]
[1727040883789,0.98,2573.6,2573.5,3.62085788]
[1727040884481,1.36854,2573.6,2573.5,3.11170803]
[1727040884689,0.98,2573.6,2573.5,3.11170803]
[1727040884886,1.36854,2573.6,2573.5,3.62085788]
[1727040885079,0.98,2573.6,2573.5,2.09374197]
[1727040885275,0.98,2573.6,2573.5,3.62085788]
[1727040885479,1.36854,2573.6,2573.5,2.09374197]
[1727040886588,1.36854,2573.6,2573.5,3.62085788]
[1727040886783,1.36854,2573.6,2573.5,2.09374197]
[1727040887588,1.36854,2573.6,2573.5,3.62085788]
[1727040888391,1.36854,2573.6,2573.5,3.62140393]
[1727040890278,1.36854,2573.6,2573.5,2.09428802]
[1727040890984,1.36854,2573.6,2573.5,3.6225454]
[1727040891190,1.36854,2573.6,2573.5,2.09428802]
[1727040891590,0.98,2573.6,2573.5,2.09428802]
[1727040892486,1.36854,2573.6,2573.5,2.09428802]
[1727040893194,0.38853,2573.7,2573.6,0.38854]
[1727040893399,1.36853,2573.7,2573.6,3.22445609]